{"text_format":"1","workbook":"xlsx","n_sheets":7,"sheets":["Inhalt","Funde","Cachetyp_Dgr","Cachetyp_prozent","D-Wertung","T-Wertung","Cachetyp_tab"],"not_rendered":{"charts":8,"images":3,"macros":1,"external_links":0,"defined_names":1,"comments":0,"pivot_tables":0},"unopened":[{"sheet":"Cachetyp_Dgr","index":2,"reason":"not_a_worksheet"},{"sheet":"Cachetyp_prozent","index":3,"reason":"not_a_worksheet"},{"sheet":"D-Wertung","index":4,"reason":"not_a_worksheet"},{"sheet":"T-Wertung","index":5,"reason":"not_a_worksheet"}],"bounds":{"document_bytes":16777216,"sheet_cells":100000,"rows_first":2000,"rows_last":500,"rows_between":2000,"halvings":0,"cell_chars":16384,"cell_head_chars":4096},"cells_cut":0,"cells_raw":0,"read":"whole","date_system":"1900"}

{"sheet":"Inhalt","index":0,"n_rows":28,"n_cols":1,"rows_kept":28,"cut":false,"hidden":false,"merged":[]}
["© Thomas Kühn"]
[]
[]
[]
["Eigene Funde bei Geocaching.com"]
[]
[]
[]
[]
["Mit diesem Tool kannst Du Deine eigenen Funde von Geocaching.com als Excel Liste importieren."]
["Dazu benötigst Du die Pocketquery \"Meine Funde\", die Du alle drei Tage erstellen kannst."]
["Nach der Erzeugung musst Du die PQ nur noch auf deine Platte speichern und entpacken."]
["Im Anschluß auf den Button klicken, die Datei auswählen und einen Moment warten."]
[]
[]
[]
[]
[]
[]
[]
[]
[]
[]
[]
["Das Tool ist kostenlos verfügbar. Falls es Dir gefallen hat würde ich mich aber über eine kleine Spende"]
["per PayPal auf das Konto t-kuehn@web.de freuen"]
[]
["Fragen, Anregungen und Kritik bitte ebenfalls an die Mailadresse t-kuehn@web.de"]

{"sheet":"Funde","index":1,"n_rows":1,"n_cols":19,"rows_kept":1,"cut":false,"hidden":false,"merged":[]}
["Log ID","GC Code","GC Name","D-Wertung","T-Wertung","Latitude","Longitude","Koords","Type","Container","Land","Landesteil","Tipp","Logdatum","Logdatum komplett","Publish","Enabled","Archiviert","Eigener Log"]

{"sheet":"Cachetyp_tab","index":6,"n_rows":35,"n_cols":3,"rows_kept":35,"cut":false,"hidden":true,"merged":[]}
["Type","Typ"]
["Cache In Trash Out Event","CITO",{"$f":"COUNTIFS(Funde!I:I,A2)","v":0}]
["Earthcache","Earthcache",{"$f":"COUNTIFS(Funde!I:I,A3)","v":0}]
["Event Cache","Event",{"$f":"COUNTIFS(Funde!I:I,A4)","v":0}]
["GPS Adventures Exhibit","GPS Adventures Exhibit",{"$f":"COUNTIFS(Funde!I:I,A5)","v":0}]
["Letterbox Hybrid","Letterbox",{"$f":"COUNTIFS(Funde!I:I,A6)","v":0}]
["Mega-Event Cache","MEGA",{"$f":"COUNTIFS(Funde!I:I,A7)","v":0}]
["Multi-cache","Multi",{"$f":"COUNTIFS(Funde!I:I,A8)","v":0}]
["Traditional Cache","Tradi",{"$f":"COUNTIFS(Funde!I:I,A9)","v":0}]
["Unknown Cache","Mystery",{"$f":"COUNTIFS(Funde!I:I,A10)","v":0}]
["Virtual Cache","Virtual",{"$f":"COUNTIFS(Funde!I:I,A11)","v":0}]
["Webcam Cache","Webcam",{"$f":"COUNTIFS(Funde!I:I,A12)","v":0}]
["Webcam Cache","Wherigo",{"$f":"COUNTIFS(Funde!I:I,A13)","v":0}]
[]
["D-Wertung"]
[1,null,{"$f":"COUNTIFS(Funde!D:D,A16)","v":0}]
[1.5,null,{"$f":"COUNTIFS(Funde!D:D,A17)","v":0}]
[2,null,{"$f":"COUNTIFS(Funde!D:D,A18)","v":0}]
[2.5,null,{"$f":"COUNTIFS(Funde!D:D,A19)","v":0}]
[3,null,{"$f":"COUNTIFS(Funde!D:D,A20)","v":0}]
[3.5,null,{"$f":"COUNTIFS(Funde!D:D,A21)","v":0}]
[4,null,{"$f":"COUNTIFS(Funde!D:D,A22)","v":0}]
[4.5,null,{"$f":"COUNTIFS(Funde!D:D,A23)","v":0}]
[5,null,{"$f":"COUNTIFS(Funde!D:D,A24)","v":0}]
[]
["T-Wertung"]
[1,null,{"$f":"COUNTIFS(Funde!E:E,A27)","v":0}]
[1.5,null,{"$f":"COUNTIFS(Funde!E:E,A28)","v":0}]
[2,null,{"$f":"COUNTIFS(Funde!E:E,A29)","v":0}]
[2.5,null,{"$f":"COUNTIFS(Funde!E:E,A30)","v":0}]
[3,null,{"$f":"COUNTIFS(Funde!E:E,A31)","v":0}]
[3.5,null,{"$f":"COUNTIFS(Funde!E:E,A32)","v":0}]
[4,null,{"$f":"COUNTIFS(Funde!E:E,A33)","v":0}]
[4.5,null,{"$f":"COUNTIFS(Funde!E:E,A34)","v":0}]
[5,null,{"$f":"COUNTIFS(Funde!E:E,A35)","v":0}]